fUST/lending_fUST_20240112
["ID","MTS","AMOUNT","RATE_DAILY","PERIOD"]
[311270120,1705008349625,-525.71054623,0.00012866,2]
[311270121,1705008349647,-253.60420254,0.00012867,2]
[311270122,1705008349670,-155.04496304,0.00012867,2]
[311270123,1705008349694,-162.78960189,0.00012867,2]
[311270124,1705008349715,-155.04496304,0.00012868,2]
[311270125,1705008349738,-155.04496304,0.00012868,2]
[311270126,1705008349763,-7945.04739538,0.00012868,2]
[311270127,1705008349784,-155.04496304,0.00012869,2]
[311270128,1705008349805,-155.04496304,0.00012869,2]
[311270129,1705008349827,-1181.69348832,0.00012869,2]
[311270130,1705008349848,-1240.12646753,0.00012869,2]
[311270131,1705008349870,-20836.46606025,0.00012869,2]
[311270132,1705008349892,-1709.71349525,0.0001287,2]
[311270133,1705008361229,155.04496304,0.00011577,2]
[311270134,1705008375321,155.04496304,0.00011575,2]
[311270135,1705008395324,155.04496304,0.00011575,2]
[311270136,1705008417234,155.04496304,0.00011573,2]
[311270137,1705008433381,155.04496304,0.00011575,2]
[311270138,1705008435272,155.04496304,0.00011518,2]
[311270141,1705008449402,257.99947078,0.00011575,2]
[311270142,1705008451248,155.04496304,0.00011516,2]
[311270143,1705008475234,155.04651395,0.00011515,2]
[311270144,1705008495240,155.04496304,0.00011511,2]
[311270150,1705008513258,155.04496304,0.00011508,2]
[311270151,1705008531249,155.04496304,0.00011508,2]
[311270157,1705008551257,155.04496304,0.00011504,2]
[311270161,1705008565321,24900.0,0.00011785,2]
[311270162,1705008571408,155.04496304,0.00011502,2]
[311270166,1705008591284,155.04496304,0.00011502,2]
[311270171,1705008611267,155.04496304,0.00011495,2]
[311270225,1705008632027,-1220.46777881,0.00012678,2]
[311270226,1705008632051,-155.04496304,0.00012678,2]
[311270227,1705008632067,-560.56224867,0.00012679,2]
[311270228,1705008632081,-230.52332349,0.00012679,2]
[311270229,1705008632095,-260.34948307,0.0001268,2]
[311270230,1705008632109,-160.71702813,0.0001268,2]
[311270231,1705008632121,-155.04496304,0.00012681,2]
[311270232,1705008632135,-509.10030575,0.00012681,2]
[311270233,1705008632151,-162.78960189,0.00012681,2]
[311270234,1705008632164,-2030.38673937,0.00012681,2]
[311270235,1705008632176,-1576.24044161,0.00012681,2]
[311270236,1705008632188,-436.36117952,0.00012682,2]
[311270237,1705008632200,-20836.46606025,0.00012771,2]
[311270238,1705008632213,-7945.04739538,0.00012772,2]
[311270239,1705008632226,-15193.63475662,0.00012772,2]
[311270240,1705008632242,-322.90358594,0.00012773,2]
[311270241,1705008632418,-1240.12646753,0.00012773,2]
[311270242,1705008632428,-155.04496304,0.00012773,2]
[311270243,1705008632439,-155.04496304,0.00012773,2]
[311270244,1705008632482,-242.63833742,0.00012773,2]
[311270245,1705008632494,-155.04496304,0.00012773,2]
[311270246,1705008632504,-156.66039464,0.00012773,2]
[311270247,1705008632514,-155.04496304,0.00012773,2]
[311270248,1705008632524,-155.04496304,0.00012773,2]
[311270249,1705008632534,-155.04496304,0.00012773,2]
[311270250,1705008632543,-155.04496304,0.00012773,2]
[311270251,1705008632554,-13007.96670834,0.00012773,2]
[311270252,1705008633263,155.04496304,0.00011494,2]
[311270305,1705008637874,-3738.72601468,0.00012678,2]
[311270307,1705008637883,-155.32507157,0.00012689,2]
[311270309,1705008637893,-7857.2352566,0.00012773,2]
[311270311,1705008637903,-15883.65187876,0.00012773,2]
[311270313,1705008637915,-874.79068657,0.00012774,2]
[311270315,1705008637925,-1989.87267074,0.00012774,2]
[311270317,1705008637934,-328.9312618,0.00012774,2]
[311270319,1705008637942,-261.8211746,0.00012774,2]
[311270321,1705008637951,-901.83243089,0.00012774,2]
[311270323,1705008637961,-525.71054623,0.00012774,2]
[311270325,1705008637970,-678.90210458,0.00012774,2]
[311270327,1705008637978,-615.66230742,0.00012774,2]
[311270329,1705008637988,-36895.86463632,0.00012774,2]
[311270331,1705008637999,-521.18657264,0.00012775,2]
[311270332,1705008638008,-594.07215949,0.00012775,2]
[311270334,1705008638018,-451.81472846,0.00012775,2]
[311270337,1705008638028,-521.18657264,0.00012775,2]
[311270341,1705008638037,-313.03128997,0.00012775,2]
[311270343,1705008638046,-174.89741352,0.00012775,2]
[311270347,1705008638056,-155.04496304,0.00012775,2]
[311270348,1705008638065,-166.35364662,0.00012775,2]
[311270351,1705008638075,-1030.79768525,0.00012775,2]
[311270354,1705008638084,-521.18657264,0.00012775,2]
[311270357,1705008638093,-7988.52269899,0.00012775,2]
[311270360,1705008638102,-213.00235315,0.00012776,2]
[311270363,1705008638112,-2708.97417906,0.00012776,2]
[311270367,1705008638123,-213.95710734,0.00012776,2]
[311270370,1705008638133,-2927.79076094,0.00012776,2]
[311270373,1705008638145,-2652.49883384,0.00012776,2]
[311270376,1705008638155,-155.04496304,0.00012776,2]
[311270378,1705008638164,-301.352632,0.00012777,2]
[311270381,1705008638175,-637.26620041,0.00012777,2]
[311270384,1705008638183,-155.04496304,0.00012777,2]
[311270386,1705008638192,-19663.58309656,0.00012777,2]
[311270389,1705008638201,-166.65114347,0.00012778,2]
[311270391,1705008638210,-13694.49776337,0.00012778,2]
[311270394,1705008638219,-81065.86768714,0.0001278,2]
[311270397,1705008638229,-169.94995702,0.0001278,2]
[311270399,1705008638238,-2808.94906759,0.00012804,2]
[311270402,1705008638249,-154.95351395,0.00012806,2]
[311270405,1705008638260,-178.44106149,0.00012861,2]
[311270408,1705008638269,-250.47516659,0.00012861,2]
[311270410,1705008638279,-311.30518423,0.00012863,2]
[311270413,1705008638288,-19828.39990193,0.00012863,2]
[311270416,1705008638297,-156.00546416,0.00012863,2]
[311270418,1705008638306,-492.24206349,0.00012863,2]
[311270420,1705008638316,-155.4137614,0.00012863,2]
[311270422,1705008638327,-309.86062544,0.00012863,2]
[311270423,1705008638337,-1212.70216413,0.00012863,2]
[311270426,1705008638346,-253.20249108,0.00012867,2]
[311270428,1705008638355,-155.04777018,0.00012869,2]
[311270430,1705008638364,-104.24375184,0.0001287,2]
[311270432,1705008638373,-155.14313428,0.000129,2]
[311270434,1705008638382,-181.12689193,0.000129,2]
[311270436,1705008638392,-553.96762656,0.00012996,2]
[311270438,1705008638401,-279.20135937,0.00012996,2]
[311270440,1705008638410,-282.8973616,0.00012996,2]
[311270442,1705008638419,-309.76768121,0.00012996,2]
[311270444,1705008638428,-396.84458378,0.00012996,2]
[311270446,1705008638437,-466.69842907,0.00012996,2]
[311270448,1705008638446,-360.80127126,0.00012996,2]
[311270450,1705008638455,-270.68971139,0.00012998,2]
[311270452,1705008638464,-213.39326389,0.00012998,2]
[311270453,1705008638473,-1048.16047271,0.00013,2]
[311270455,1705008638482,-221.97582673,0.00013,2]
[311270457,1705008638493,-215.9027007,0.00013,2]
[311270459,1705008638502,-329.8178604,0.00013,2]
[311270461,1705008638511,-162.61777634,0.00013,2]
[311270463,1705008638520,-237.94121335,0.00013,2]
[311270465,1705008638529,-164.95363693,0.00013,2]
[311270468,1705008638538,-2030.00090937,0.00013,2]
[311270469,1705008638547,-479.48737948,0.00013,2]
[311270472,1705008638557,-1647.46294033,0.00013013,2]
[311270474,1705008638566,-155.34159394,0.00013015,2]
[311270476,1705008638575,-176.51985459,0.00013015,2]
[311270478,1705008638584,-309.78316417,0.00013015,2]
[311270479,1705008638594,-155.14300858,0.00013015,2]
[311270482,1705008638603,-309.75221062,0.00013015,2]
[311270484,1705008638612,-155.54491002,0.00013015,2]
[311270486,1705008638621,-206.44888347,0.00013015,2]
[311270487,1705008638630,-155.53002517,0.00013018,2]
[311270490,1705008638639,-215.64200685,0.00013018,2]
[311270492,1705008638649,-309.81411154,0.00013026,2]
[311270493,1705008638658,-2070.70229933,0.00013026,2]
[311270495,1705008638667,-6602.15861025,0.00013028,2]
[311270497,1705008638676,-199.4847221,0.00013028,2]
[311270499,1705008638685,-247.12980198,0.00013028,2]
[311270501,1705008638694,-155.07133281,0.00013028,2]
[311270503,1705008638703,-304.4646857,0.00013028,2]
[311270505,1705008638712,-301.7285982,0.0001303,2]
[311270507,1705008638721,-309.16953134,0.0001303,2]
[311270509,1705008638730,-295.11666302,0.0001303,2]
[311270511,1705008638739,-155.1360822,0.0001303,2]
[311270513,1705008638750,-526.10879761,0.0001305,2]
[311270516,1705008638760,-469.71701685,0.00013144,2]
[311270517,1705008638769,-520.61604034,0.00013144,2]
[311270519,1705008638778,-185.06062567,0.00013152,2]
[311270521,1705008638787,-282.92595231,0.0001369,2]
[311270523,1705008638796,-4178.6254779,0.00013699,2]
[311270525,1705008638805,-2240.138728,0.00013699,2]
[311270527,1705008638814,-5000.0,0.00013699,2]
[311270529,1705008638823,-200.0,0.00014073,2]
[311270531,1705008638832,-155.03255684,0.00015,2]
[311270533,1705008638841,-686.6489252,0.00015,2]
[311270535,1705008638850,-155.04651395,0.00015,2]
[311270537,1705008638859,-2698.75957629,0.00015,2]
[311270539,1705008638868,-1284.2876522,0.00015342,2]
[311270541,1705008638878,-280.0,0.00015481,2]
[311270543,1705008638887,-436.3611795,0.00016487,2]
[311270545,1705008638897,-272.00985266,0.000165,2]
[311270547,1705008638906,-391.0,0.00017029,2]
[311270549,1705008638915,-872.72571525,0.00017235,2]
[311270551,1705008638925,-246.10686283,0.000178,2]
[311270554,1705008638935,-10503.19627673,0.00017898,2]
[311270555,1705008638944,-155.18321527,0.00018,2]
[311270557,1705008638953,-248.0,0.00018732,2]
[311270559,1705008638962,-266.51885181,0.000189,2]
[311270561,1705008638972,-1578.97802722,0.00019,2]
[311270563,1705008638981,-523.44705876,0.00019076,2]
[311270565,1705008638989,-165.821984,0.00019178,2]
[311270567,1705008639000,-1112.22182837,0.000195,2]
[311270569,1705008639010,-156.28845056,0.0002,2]
[311270571,1705008639019,-569.37401545,0.0002,2]
[311270573,1705008639028,-314.30408612,0.0002,2]
[311270575,1705008639037,-853.72221584,0.0002,2]
[311270577,1705008639046,-315.48561899,0.0002,2]
[311270579,1705008639055,-1195.27282006,0.0002,2]
[311270581,1705008639065,-155.03255684,0.0002,2]
[311270583,1705008639074,-677.0708176,0.0002,2]
[311270585,1705008639083,-155.03255684,0.0002,2]
[311270587,1705008639092,-155.03255684,0.0002,2]
[311270589,1705008639102,-155.03255684,0.0002,2]
[311270591,1705008639112,-266.37190097,0.0002,2]
[311270593,1705008639121,-151.60611518,0.0002,2]
[311270595,1705008639130,-4321.40443,0.0002,2]
[311270597,1705008639139,-4321.40443,0.0002,2]
[311270599,1705008639149,-4321.40443,0.0002,2]
[311270601,1705008639158,-4321.40443,0.0002,2]
[311270603,1705008639167,-4321.40443,0.0002,2]
[311270605,1705008639177,-436.3611795,0.00020291,2]
[311270607,1705008639186,-2240.138728,0.00020548,2]
[311270609,1705008639196,-478.51187948,0.00021,2]
[311270611,1705008639205,-181.1268919,0.00021095,2]
[311270613,1705008639214,-249.4328017,0.00021196,2]
[311270615,1705008639224,-1822.05331204,0.00021504,2]
[311270617,1705008639233,-546.87419273,0.00021504,2]
[311270619,1705008639243,-2079.89647566,0.00021504,2]
[311270621,1705008639253,-200.0,0.00021504,2]
[311270623,1705008639262,-283561.35337882,0.00021504,2]
[311270625,1705008639272,-344.73296744,0.00021504,2]
[311270627,1705008639281,-156.20158753,0.00021504,2]
[311270628,1705008639291,-165.41976585,0.00021504,2]
[311270630,1705008639301,-989.9133338,0.00021504,2]
[311270632,1705008639310,-155.04651395,0.00021504,2]
[311270633,1705008639319,-166.666666,0.00021918,2]
[311270634,1705008639328,-3083.76102233,0.00022,2]
[311270635,1705008639337,-155.11478494,0.00022,2]
[311270636,1705008639346,-2076.82617599,0.00022,2]
[311270637,1705008639355,-296.02443686,0.00022,2]
[311270638,1705008639364,-166.666666,0.00022431,2]
[311270639,1705008639373,-170.657869,0.00022643,2]
[311270640,1705008639382,-166.666666,0.00022944,2]
[311270641,1705008639391,-2093.45221107,0.00023,2]
[311270642,1705008639400,-9923.17263833,0.00023,2]
[311270643,1705008639409,-166.666666,0.00023456,2]
[311270644,1705008639418,-266.51885181,0.000239,2]
[311270645,1705008639427,-166.666666,0.00023969,2]
[311270646,1705008639436,-4005.39956635,0.00024,2]
[311270647,1705008639445,-614.12133667,0.00024,2]
[311270648,1705008639454,-436.3611795,0.00024096,2]
[311270649,1705008639462,-166.666666,0.00024482,2]
[311270650,1705008639471,-687.75702701,0.000247,2]
[311270651,1705008639480,-244.2200595,0.00025,2]
[311270653,1705008639489,-628.01534016,0.00025,2]
[311270655,1705008639499,-799.75816009,0.00025,2]
[311270657,1705008639508,-2097.96974047,0.00025,2]
[311270659,1705008639517,-4711.91259146,0.00025,2]
[311270661,1705008639526,-155.03255684,0.00025,2]
[311270663,1705008639535,-2000.0,0.00025,2]
[311270665,1705008639543,-2000.0,0.0002501,2]
[311270667,1705008639553,-2000.0,0.0002502,2]
[311270669,1705008639562,-2000.0,0.0002503,2]
[311270670,1705008639571,-2000.0,0.0002504,2]
[311270672,1705008639580,-2000.0,0.0002505,2]
[311270674,1705008639590,-2000.0,0.0002506,2]
[311270676,1705008639599,-2000.0,0.0002507,2]
[311270678,1705008639608,-2000.0,0.0002508,2]
[311270680,1705008639617,-2000.0,0.0002509,2]
[311270682,1705008639626,-2000.0,0.000251,2]
[311270684,1705008639635,-2066.583364,0.0002511,2]
[311270686,1705008639644,-159.1987783,0.00025479,2]
[311270688,1705008639653,-622.93386223,0.000264,2]
[311270690,1705008639663,-3314.01740452,0.00027,2]
[311270692,1705008639672,-155.10391963,0.00027,7]
[311270694,1705008639681,-460.6542226,0.00027,2]
[311270696,1705008639691,-104701.83158134,0.00027198,2]
[311270698,1705008639700,-9100.04106185,0.000273,4]
[311270700,1705008639709,-1054.938322,0.000273,2]
[311270702,1705008639719,-1054.938322,0.000273,2]
[311270704,1705008639728,-1590.713938,0.000273,2]
[311270707,1705008639737,-1590.713938,0.000273,2]
[311270709,1705008639746,-155.0,0.00027397,2]
[311270711,1705008639755,-323.71326909,0.00027397,2]
[311270713,1705008639764,-721.70066033,0.00027397,2]
[311270715,1705008639773,-261.02565785,0.000274,2]
[311270717,1705008639782,-177.62762777,0.000274,5]
[311270719,1705008639791,-177.62762777,0.00027617,5]
[311270721,1705008639800,-620.14669311,0.0002772,2]
[311270723,1705008639809,-436.3611795,0.000279,2]
[311270725,1705008639818,-305.07101819,0.00028,2]
[311270727,1705008639827,-483.61502924,0.00028,2]
[311270729,1705008639835,-9297.49365479,0.00028,2]
[311270731,1705008639844,-237.60910002,0.00028,2]
[311270733,1705008639853,-151.0,0.00028244,2]
[311270735,1705008639862,-257.19576168,0.00028415,2]
[311270737,1705008639871,-16633.33649069,0.00028517,3]
[311270739,1705008639880,-2456.60410594,0.00028517,3]
[311270741,1705008639889,-1201.75330994,0.00028517,3]
[311270743,1705008639899,-191.02226039,0.00028531,3]
[311270745,1705008639908,-10623.80376589,0.00028749,2]
[311270747,1705008639917,-155.0,0.00028767,2]
[311270749,1705008639926,-153.0,0.00028767,2]
[311270751,1705008639935,-151.04531359,0.00028865,2]
[311270764,1705008640042,-266.51885181,0.000289,2]
[311270766,1705008640054,-268.54,0.00028999,2]
[311270768,1705008640063,-268.54,0.00028999,2]
[311270770,1705008640072,-268.54,0.00028999,2]
[311270772,1705008640082,-268.54,0.00028999,2]
[311270774,1705008640091,-268.54,0.00028999,2]
[311270776,1705008640100,-268.54,0.00028999,2]
[311270778,1705008640109,-268.54,0.00028999,2]
[311270780,1705008640118,-268.54,0.00028999,2]
[311270782,1705008640128,-268.54,0.00028999,2]
[311270784,1705008640137,-268.54,0.00028999,2]
[311270786,1705008640150,-155.10391963,0.00029,2]
[311270788,1705008640159,-3025.449916,0.00029,2]
[311270790,1705008640168,-118637.29995858,0.00029,2]
[311270792,1705008640177,-79469.02841882,0.00029,2]
[311270794,1705008640187,-3534.66452493,0.00029,11]
[311270796,1705008640196,-1054.938322,0.00029,2]
[311270798,1705008640205,-1054.938322,0.00029,2]
[311270800,1705008640214,-62911.0,0.00029,2]
[311270802,1705008640224,-1590.713938,0.00029,2]
[311270803,1705008640233,-1590.713938,0.00029,2]
[311270804,1705008640243,-620.00733466,0.00029106,2]
[311270805,1705008640252,-154.09671267,0.00029203,2]
[311270806,1705008640261,-151.0,0.0002929,2]
[311270807,1705008640270,-49610.06269275,0.000293,5]
[311270808,1705008640279,-152.31739519,0.00029327,2]
[311270809,1705008640288,-154.09671267,0.00029431,2]
[311270810,1705008640297,-155.78182122,0.00029453,2]
[311270811,1705008640306,-181.1268919,0.00029498,4]
[311270812,1705008640315,-189.52504916,0.00029565,2]
[311270813,1705008640324,-153.0,0.00029589,2]
[311270814,1705008640333,-153.0,0.00029589,2]
[311270815,1705008640342,-153.0,0.00029589,2]
[311270816,1705008640351,-153.0,0.00029589,2]
[311270817,1705008640360,-153.0,0.00029589,2]
[311270818,1705008640369,-153.0,0.00029589,2]
[311270819,1705008640378,-153.0,0.00029589,2]
[311270820,1705008640387,-153.0,0.00029589,2]
[311270821,1705008640396,-153.0,0.00029589,2]
[311270822,1705008640405,-153.0,0.00029589,2]
[311270823,1705008640414,-153.0,0.00029589,2]
[311270824,1705008640423,-153.0,0.00029589,2]
[311270825,1705008640432,-153.0,0.00029589,2]
[311270826,1705008640441,-153.0,0.00029589,2]
[311270827,1705008640451,-153.0,0.00029589,2]
[311270828,1705008640460,-153.0,0.00029589,2]
[311270829,1705008640469,-153.0,0.00029589,2]
[311270830,1705008640477,-177.62,0.0002959,5]
[311270831,1705008640487,-466.44081,0.00029606,2]
[311270832,1705008640496,-332.253364,0.00029606,2]
[311270833,1705008640505,-162.974971,0.00029606,2]
[311270834,1705008640514,-233.220405,0.00029606,2]
[311270835,1705008640523,-178.733525,0.00029606,2]
[311270836,1705008640532,-265.036736,0.00029606,2]
[311270837,1705008640541,-170.356278,0.00029606,2]
[311270838,1705008640551,-164.552346,0.00029606,2]
[311270839,1705008640563,-154.09671267,0.00029607,2]
[311270840,1705008640572,-154.09671267,0.0002966,2]
[311270842,1705008640581,-38379.93475574,0.0002969,2]
[311270844,1705008640590,-254.23001474,0.00029701,3]
[311270845,1705008640600,-357430.98576647,0.0002979,7]
[311270846,1705008640609,-151.0,0.0002979,2]
[311270847,1705008640618,-1054.938322,0.0002979,2]
[311270849,1705008640628,-1054.938322,0.0002979,2]
[311270850,1705008640637,-1590.713938,0.0002979,2]
[311270851,1705008640646,-1590.713938,0.0002979,2]
[311270852,1705008640655,-22848.37877952,0.000298,2]
[311270853,1705008640665,-466.44081,0.00029977,2]
[311270854,1705008640675,-332.253364,0.00029977,2]
[311270855,1705008640684,-233.220405,0.00029977,2]
[311270856,1705008640693,-170.356278,0.00029977,2]
[311270857,1705008640703,-265.036736,0.00029977,2]
[311270858,1705008640712,-370.76337205,0.00029999,4]
[311270859,1705008640721,-500.0,0.00029999,4]
[311270860,1705008640731,-549.97215065,0.00029999,4]
[311270861,1705008640740,-399.90722612,0.00029999,4]
[311270862,1705008640750,-224.97680652,0.00029999,4]
[311270863,1705008640759,-155.10391963,0.0003,2]
[311270864,1705008640769,-282.67247261,0.0003,3]
[311270865,1705008640778,-2151.8403773,0.0003,4]
[311270866,1705008640788,-434.02469415,0.0003,4]
[311270867,1705008640797,-815.96446693,0.0003,2]
[311270868,1705008640807,-10528.61647802,0.0003,4]
[311270869,1705008640816,-639.80669723,0.0003,4]
[311270870,1705008640826,-6975.26133049,0.0003,4]
[311270871,1705008640835,-1200.0,0.0003,4]
[311270872,1705008640844,-163.55638359,0.0003,5]
[311270873,1705008640854,-686.8051383,0.0003,4]
[311270874,1705008640863,-55552.1602185,0.0003,15]
[311270875,1705008640872,-18742.68961404,0.0003,4]
[311270876,1705008640881,-244.50330111,0.0003,7]
[311270877,1705008640891,-155.50940124,0.0003,4]
[311270878,1705008640901,-899.90173962,0.0003,2]
[311270879,1705008640910,-6183.76397391,0.0003,2]
[311270880,1705008640920,-2188.79308094,0.0003,2]
[311270881,1705008640929,-8912.47143386,0.0003,3]
[311270882,1705008640939,-3799.999999,0.0003,2]
[311270883,1705008640949,-22726.82712211,0.0003,3]
[311270884,1705008640959,-8035.64264101,0.0003,14]
[311270885,1705008640968,-36066.81272948,0.0003,10]
[311270886,1705008640977,-1000.18263852,0.0003,10]
[311270887,1705008640988,-18553.45565274,0.0003,2]
[311270888,1705008640998,-698.89862508,0.0003,2]
[311270889,1705008641007,-151.0,0.0003,2]
[311270890,1705008641016,-155.04651395,0.0003,2]
[311270891,1705008641027,-1212.47282924,0.0003,2]
[311270892,1705008641037,-1054.938322,0.0003,2]
[311270893,1705008641046,-1054.938322,0.0003,2]
[311270894,1705008641056,-548.59056956,0.0003,2]
[311270896,1705008641065,-1590.713938,0.0003,2]
[311270897,1705008641074,-1590.713938,0.0003,2]
[311270898,1705008641083,-152.0,0.0003,2]
[311270899,1705008641093,-154.09671267,0.00030015,7]
[311270901,1705008641102,-162.974971,0.000301,2]
[311270903,1705008641111,-197.37626976,0.0003013,2]
[311270904,1705008641120,-151.0,0.00030136,2]
[311270905,1705008641129,-1054.938322,0.00030136,2]
[311270906,1705008641138,-1054.938322,0.00030136,2]
[311270907,1705008641147,-1590.713938,0.00030136,2]
[311270908,1705008641156,-1590.713938,0.00030136,2]
[311270909,1705008641165,-155.07443573,0.00030136,3]
[311270910,1705008641174,-200.61953262,0.00030136,2]
[311270912,1705008641183,-500.0,0.00030136,2]
[311270913,1705008641192,-500.0,0.00030136,2]
[311270915,1705008641201,-500.0,0.00030136,2]
[311270917,1705008641213,-500.0,0.00030136,2]
[311270920,1705008641224,-500.0,0.00030136,2]
[311270922,1705008641233,-500.0,0.00030136,2]
[311270924,1705008641241,-500.0,0.00030136,2]
[311270926,1705008641250,-500.0,0.00030136,2]
[311270928,1705008641261,-594.76805938,0.00030136,2]
[311270929,1705008641271,-500.0,0.00030136,2]
[311270932,1705008641280,-500.0,0.00030136,2]
[311270934,1705008641289,-504.99644365,0.00030136,30]
[311270936,1705008641299,-500.0,0.00030136,2]
[311270938,1705008641309,-500.0,0.00030136,2]
[311270939,1705008641319,-509.94278174,0.00030136,2]
[311270941,1705008641330,-500.0,0.00030136,2]
[311270943,1705008641339,-500.0,0.00030136,2]
[311270945,1705008641348,-501.67385778,0.00030136,2]
[311270948,1705008641362,-500.0,0.00030136,2]
[311270949,1705008641371,-500.0,0.00030136,2]
[311270952,1705008641380,-436.7156274,0.00030136,2]
[311270954,1705008641389,-500.0,0.00030136,2]
[311270956,1705008641398,-308.75957109,0.00030136,2]
[311270958,1705008641407,-522.97859531,0.00030136,2]
[311270960,1705008641417,-500.0,0.00030136,2]
[311270962,1705008641427,-500.0,0.00030136,2]
[311270963,1705008641436,-500.0,0.00030136,2]
[311270965,1705008641444,-500.0,0.00030136,2]
[311270967,1705008641453,-500.0,0.00030136,2]
[311270969,1705008641462,-277.54315261,0.00030136,2]
[311270972,1705008641471,-642.73342,0.00030136,2]
[311270973,1705008641480,-1000.0,0.00030136,2]
[311270975,1705008641489,-500.0,0.00030136,2]
[311270978,1705008641499,-500.0,0.00030136,2]
[311270979,1705008641508,-500.0,0.00030136,2]
[311270981,1705008641517,-270.6920062,0.00030136,2]
[311270983,1705008641527,-500.0,0.00030136,2]
[311270985,1705008641536,-500.0,0.00030136,2]
[311270987,1705008641544,-500.0,0.00030136,2]
[311270989,1705008641553,-500.0,0.00030136,2]
[311270991,1705008641562,-500.0,0.00030136,2]
[311270993,1705008641571,-500.0,0.00030136,2]
[311270995,1705008641579,-500.0,0.00030136,2]
[311270997,1705008641588,-500.0,0.00030136,2]
[311270999,1705008641597,-500.0,0.00030136,2]
[311271001,1705008641606,-511.70322812,0.00030136,2]
[311271003,1705008641615,-500.0,0.00030136,2]
[311271005,1705008641624,-500.0,0.00030136,2]
[311271007,1705008641633,-502.53708543,0.00030136,2]
[311271009,1705008641641,-500.0,0.00030136,2]
[311271011,1705008641650,-322.61788866,0.00030136,2]
[311271013,1705008641659,-500.0,0.00030136,2]
[311271015,1705008641669,-421.07384829,0.00030136,2]
[311271017,1705008641678,-501.48834983,0.00030136,2]
[311271019,1705008641687,-345.71155924,0.00030136,2]
[311271021,1705008641696,-500.0,0.00030136,2]
[311271023,1705008641704,-503.69799777,0.00030136,2]
[311271025,1705008641713,-555.35,0.00030136,2]
[311271027,1705008641723,-500.0,0.00030136,2]
[311271029,1705008641732,-500.0,0.00030136,2]
[311271031,1705008641741,-500.0,0.00030136,2]
[311271033,1705008641750,-500.0,0.00030136,2]
[311271035,1705008641759,-500.0,0.00030136,2]
[311271037,1705008641768,-500.0,0.00030136,2]
[311271039,1705008641777,-500.0,0.00030136,2]
[311271041,1705008641786,-500.0,0.00030136,2]
[311271043,1705008641795,-500.20971053,0.00030136,2]
[311271045,1705008641804,-500.0,0.00030136,2]
[311271047,1705008641813,-500.0,0.00030136,2]
[311271049,1705008641823,-500.0,0.00030136,2]
[311271051,1705008641832,-500.0,0.00030136,2]
[311271053,1705008641841,-500.0,0.00030136,2]
[311271055,1705008641849,-500.0,0.00030136,2]
[311271057,1705008641858,-500.0,0.00030136,2]
[311271059,1705008641868,-500.0,0.00030136,2]
[311271061,1705008641877,-500.0,0.00030136,2]
[311271063,1705008641886,-500.0,0.00030136,2]
[311271065,1705008641895,-500.0,0.00030136,2]
[311271067,1705008641904,-500.0,0.00030136,2]
[311271069,1705008641913,-500.0,0.00030136,2]
[311271071,1705008641922,-500.0,0.00030136,2]
[311271073,1705008641932,-503.08297517,0.00030136,2]
[311271075,1705008641940,-500.0,0.00030136,2]
[311271077,1705008641949,-500.0,0.00030136,2]
[311271079,1705008641958,-500.0,0.00030136,2]
[311271081,1705008641967,-500.0,0.00030136,2]
[311271083,1705008641976,-508.57057146,0.00030136,2]
[311271084,1705008641986,-500.0,0.00030136,2]
[311271086,1705008641996,-1000.0,0.00030136,2]
[311271088,1705008642005,-500.0,0.00030136,2]
[311271090,1705008642014,-500.0,0.00030136,2]
[311271092,1705008642023,-500.0,0.00030136,2]
[311271094,1705008642033,-500.0,0.00030136,2]
[311271096,1705008642043,-226.98517404,0.00030136,2]
[311271098,1705008642052,-500.0,0.00030136,2]
[311271100,1705008642062,-500.0,0.00030136,2]
[311271103,1705008642071,-500.0,0.00030136,2]